[Event "4NCL Div 1 2024-25"]
[Site "England"]
[Date "2025.04.06"]
[Round "8.47"]
[White "Carroll, Thomas"]
[Black "Bashylina, Luisa"]
[Result "0-1"]
[Annotator "ChessBase"]
[ECO "D02"]
[WhiteElo "2126"]
[BlackElo "2132"]
[PlyCount "84"]
[EventDate "2024.11.23"]
[EventType "team-tourn"]
[EventCountry "ENG"]
[SourceTitle "playchess.com"]
[Source "ChessBase"]
[SourceQuality "1"]
[TimeControl "40/6000+30:3000+30"]

1. Nf3 {[%emt 0:10:03]} Nf6 {[%emt 0:12:46]} 2. g3 {[%emt 0:00:08]} d5 {[%emt 0:00:20]} 3. Bg2 {[%emt 0:01:33]} g6 {[%emt 0:04:22]} 4. b3 {[%emt 0:01:31]} Bg7 {[%emt 0:00:07]} 5. Bb2 {[%emt 0:00:22]} c5 {[%emt 0:00:35]} 6. O-O {[%emt 0:04:13]} O-O {[%emt 0:00:11]} 7. e3 {[%emt 0:02:28]} Nc6 {[%emt 0:00:31]} 8. d4 {[%emt 0:02:32]} Ne4 {[%emt 0:04:16]} 9. c4 {[%emt 0:05:50]} e6 {[%emt 0:02:53]} 10. Qc1 {[%emt 0:02:06]} dxc4 {[%emt 0:12:06]} 11. Qxc4 {[%emt 0:03:35]} cxd4 {[%emt 0:03:32]} 12. Nxd4 {[%emt 0:08:43]} Nxd4 {[%emt 0:01:39]} 13. exd4 {[%emt 0:01:18]} Nd6 {[%emt 0:02:31]} 14. Qd3 {[%emt 0:02:25]} Bd7 {[%emt 0:02:47]} 15. Nc3 {[%emt 0:03:33]} Bc6 {[%emt 0:01:50]} 16. Bxc6 {[%emt 0:07:06]} bxc6 {[%emt 0:00:06]} 17. Rfd1 {[%emt 0:00:29]} Nf5 {[%emt 0:03:35]} 18. Ne2 {[%emt 0:02:14]} Qb6 {[%emt 0:06:04]} 19. Qc4 {[%emt 0:04:43]} Rfd8 {[%emt 0:01:40]} 20. Rd3 {[%emt 0:04:41]} h5 {[%emt 0:03:26]} 21. Rad1 {[%emt 0:01:03]} a5 {[%emt 0:05:27]} 22. a4 {[%emt 0:04:02]} Qa6 {[%emt 0:09:10]} 23. Qc2 {[%emt 0:00:07]} Rd7 {[%emt 0:01:06]} 24. Rc3 {[%emt 0:10:35]} Rc8 {[%emt 0:02:22]} 25. Rc5 {[%emt 0:03:04]} Rd5 {[%emt 0:03:39]} 26. Rc4 {[%emt 0:07:45]} g5 {[%emt 0:04:26]} 27. Ba3 {[%emt 0:01:56]} Qb6 {[%emt 0:05:58]} 28. Bc5 {[%emt 0:01:13]} Qd8 {[%emt 0:01:00]} 29. Qd3 {[%emt 0:02:17]} Rb8 {[%emt 0:01:56]} 30. Qf3 {[%emt 0:01:36]} h4 {[%emt 0:02:07]} 31. Rd3 {[%emt 0:00:43]} Qd7 {[%emt 0:03:58]} 32. g4 {[%emt 0:02:15]} Nd6 {[%emt 0:00:35]} 33. Rc2 {[%emt 0:01:03]} f5 {[%emt 0:03:04]} 34. Nc3 {[%emt 0:01:20]} fxg4 {[%emt 0:00:41]} 35. Qxg4 {[%emt 0:00:16]} Rf5 {[%emt 0:00:12]} 36. Nd1 {[%emt 0:04:16]} Nf7 {[%emt 0:01:13]} 37. Ne3 {[%emt 0:02:01]} Ne5 {[%emt 0:01:49]} 38. Qe4 {[%emt 0:02:37]} Nf3+ {[%emt 0:00:45]} 39. Kh1 {[%emt 0:00:37]} Rf4 {[%emt 0:00:15]} 40. Qg6 {[%emt 0:00:36]} Ne1 {[%emt 0:00:28]} 41. Kg1 {[%emt 0:35:11]} Nxc2 {[%emt 0:23:14]} 42. Qxg5 {[%emt 0:02:46]} e5 {[%emt 0:00:34]} 0-1

[Event "4NCL Div 1 2024-25"]
[Site "England"]
[Date "2025.04.06"]
[Round "8.48"]
[White "Patel, Zain"]
[Black "Flint, Martina"]
[Result "1/2-1/2"]
[Annotator "NA"]
[ECO "A01"]
[WhiteElo "2083"]
[BlackElo "1835"]
[PlyCount "46"]
[EventDate "2024.11.23"]
[EventType "team-tourn"]
[EventCountry "ENG"]
[SourceTitle "playchess.com"]
[Source "ChessBase"]
[SourceQuality "1"]
[TimeControl "40/6000+30:3000+30"]

1. b3 {[%emt 0:18:41]} d6 {[%emt 0:10:38]} 2. Bb2 {[%emt 0:00:22]} e5 {[%emt 0:00:28]} 3. e3 {[%emt 0:00:16]} Nf6 {[%emt 0:00:57]} 4. c4 {[%emt 0:06:16]} g6 {[%emt 0:02:45]} 5. Be2 {[%emt 0:02:08]} Bg7 {[%emt 0:01:12]} 6. d4 {[%emt 0:02:06]} Qe7 {[%emt 0:04:52]} 7. Nf3 {[%emt 0:04:39]} e4 {[%emt 0:02:32]} 8. Nfd2 {[%emt 0:01:04]} O-O {[%emt 0:00:55]} 9. Nc3 {[%emt 0:01:01]} c6 {[%emt 0:06:53]} 10. Qc2 {[%emt 0:03:01]} Re8 {[%emt 0:00:35]} 11. O-O {[%emt 0:00:56]} h5 {[%emt 0:03:16]} 12. Rae1 {[%emt 0:04:44]} Bh6 {[%emt 0:06:48]} 13. Kh1 {[%emt 0:03:41]} Na6 {[%emt 0:02:42]} 14. a3 {[%emt 0:02:18]} Bf5 {[%emt 0:02:04]} 15. b4 {[%emt 0:10:27]} Nc7 {[%emt 0:03:10]} 16. b5 {[%emt 0:13:10]} cxb5 {[%emt 0:02:39]} 17. cxb5 {[%emt 0:01:34]} Ncd5 {[%emt 0:05:16]} 18. Ndb1 {[%emt 0:11:46]} Rec8 {[%emt 0:10:05]} 19. Rc1 {[%emt 0:01:31]} Be6 {[%emt 0:07:35]} 20. Nxd5 {[%emt 0:01:38]} Bxd5 {[%emt 0:01:25]} 21. Nc3 {[%emt 0:02:22]} Qe6 {[%emt 0:04:38]} 22. Qd2 {[%emt 0:03:50]} Bb3 {[%emt 0:06:54]} 23. Bd1 {[%emt 0:09:41]} Bc4 {[%emt 0:04:08]} 1/2-1/2